fUSD/lending_fUSD_20251030
["ID","MTS","AMOUNT","RATE_DAILY","PERIOD"]
[392654595,1761782408161,301.59,0.000271,120]
[392654602,1761782550541,150.0,0.00030788,120]
[392654633,1761782635605,1262.32,0.00019,30]
[392654716,1761782703922,175.0,0.00028892,120]
[392654723,1761782736953,156.60236015,0.00013488,2]
[392654727,1761782790726,150.0,0.00026054,120]
[392654737,1761782913105,450.0,0.00031506,120]
[392654762,1761783032113,-2751.0,0.00014012,2]
[392654763,1761783032122,-195.0,0.00014019,2]
[392654764,1761783032131,-263.65001136,0.00014019,2]
[392654765,1761783032143,-36.34998864,0.00014019,2]
[392654767,1761783032160,-178.95064141,0.00014026,2]
[392654768,1761783032172,-283.13892869,0.00014026,2]
[392654769,1761783032182,-150.0,0.00014026,2]
[392654770,1761783032193,-204.58,0.00014071,2]
[392654771,1761783032205,-195.0,0.00014126,2]
[392654772,1761783032216,-166.66,0.00014511,2]
[392654773,1761783032226,-221.53471527,0.00014594,2]
[392654774,1761783032237,-3293.8052861,0.00014835,2]
[392654775,1761783032298,-196.1947139,0.00014835,2]
[392654776,1761783032309,-300.0,0.00014899,2]
[392654777,1761783032320,-162.0552861,0.00014899,2]
[392654778,1761783032332,-137.9447139,0.00014899,2]
[392654779,1761783032342,-1200.0,0.00014899,2]
[392654780,1761783032352,-739.73803915,0.000149,2]
[392654781,1761783032362,-422.19735852,0.000149,2]
[392654784,1761783032399,-317.54068063,0.000149,2]
[392654786,1761783032409,-170.86931937,0.000149,2]
[392654788,1761783032421,-5.09068063,0.000149,2]
[392654790,1761783032430,-368.37,0.000149,2]
[392654792,1761783032441,-414.74,0.000149,2]
[392654794,1761783032451,-169.02543722,0.000149,2]
[392654796,1761783032461,-199.9,0.000149,2]
[392654797,1761783032471,-150.0,0.000149,2]
[392654799,1761783032481,-150.0,0.000149,2]
[392654801,1761783032490,-160.2238359,0.000149,2]
[392654807,1761783032541,-876.38453764,0.000149,2]
[392654809,1761783032550,-343.99539055,0.000149,2]
[392654811,1761783032559,-150.0,0.00014972,2]
[392654813,1761783032571,-500.0,0.00014973,2]
[392654815,1761783032580,-462.31058477,0.00014973,2]
[392654817,1761783032590,-500.0,0.00014973,2]
[392654819,1761783032599,-525.99245398,0.00014973,2]
[392654821,1761783032608,-222.47432878,0.00014973,2]
[392654823,1761783032618,-500.0,0.00014973,2]
[392654825,1761783032627,-500.0,0.00014973,2]
[392654827,1761783032636,-500.0,0.00014973,2]
[392654828,1761783032646,-500.0,0.00014973,2]
[392654830,1761783032655,-284.93751373,0.00014973,2]
[392654832,1761783032664,-500.0,0.00014973,2]
[392654834,1761783032675,-500.0,0.00014973,2]
[392654836,1761783032684,-280.90776042,0.00014973,2]
[392654838,1761783032693,-277.35679052,0.00014976,2]
[392654840,1761783032703,-791.45442,0.0001498,2]
[392654842,1761783032713,-500.0,0.00014983,2]
[392654844,1761783032723,-500.0,0.00014983,2]
[392654846,1761783032732,-500.0,0.00014983,2]
[392654848,1761783032742,-500.0,0.00014983,2]
[392654850,1761783032751,-500.0,0.00014983,2]
[392654852,1761783032761,-500.0,0.00014983,2]
[392654854,1761783032770,-500.0,0.00014983,2]
[392654856,1761783032780,-500.0,0.00014983,2]
[392654858,1761783032789,-500.0,0.00014983,2]
[392654860,1761783032799,-500.0,0.00014983,2]
[392654862,1761783032811,-500.0,0.00014983,2]
[392654863,1761783032821,-500.0,0.00014983,2]
[392654865,1761783032830,-500.0,0.00014983,2]
[392654867,1761783032840,-500.0,0.00014983,2]
[392654869,1761783032849,-500.0,0.00014983,2]
[392654871,1761783032859,-500.0,0.00014983,2]
[392654873,1761783032869,-500.0,0.00014983,2]
[392654875,1761783032879,-500.0,0.00014983,2]
[392654877,1761783032888,-500.0,0.00014983,2]
[392654879,1761783032897,-523.24,0.00014985,2]
[392654881,1761783032907,-1036.239,0.00014986,2]
[392654883,1761783032916,-662.675,0.00014986,2]
[392654885,1761783032925,-3416.0,0.00014986,2]
[392654887,1761783032938,-573.0,0.00014986,2]
[392654889,1761783032947,-820.0,0.00014986,2]
[392654891,1761783032957,-1593.0,0.00014986,2]
[392654893,1761783032966,-1313.0,0.00014986,2]
[392654895,1761783032976,-1270.0,0.00014986,2]
[392654897,1761783032985,-818.0,0.00014986,2]
[392654899,1761783032995,-172.02859755,0.0001499,2]
[392654901,1761783033004,-166.66,0.0001499,2]
[392654903,1761783033013,-151.0,0.00014991,2]
[392654904,1761783033023,-151.0,0.00014991,2]
[392654905,1761783033032,-151.0,0.00014991,2]
[392654906,1761783033042,-151.0,0.00014991,2]
[392654907,1761783033053,-574.12855637,0.00014991,2]
[392654908,1761783033063,-151.0,0.00014991,2]
[392654909,1761783033072,-151.0,0.00014991,2]
[392654910,1761783033082,-151.0,0.00014991,2]
[392654911,1761783033092,-151.0,0.00014991,2]
[392654912,1761783033102,-500.0,0.00014991,2]
[392654913,1761783033111,-500.0,0.00014991,2]
[392654914,1761783033121,-500.0,0.00014991,2]
[392654915,1761783033131,-500.0,0.00014991,2]
[392654916,1761783033140,-500.0,0.00014991,2]
[392654917,1761783033149,-235.20305303,0.00014991,2]
[392654918,1761783033159,-151.0,0.00014991,2]
[392654919,1761783033169,-151.0,0.00014991,2]
[392654921,1761783033178,-151.0,0.00014991,2]
[392654922,1761783033188,-151.0,0.00014991,2]
[392654924,1761783033198,-151.0,0.00014991,2]
[392654926,1761783033207,-232.63774081,0.00014999,2]
[392654928,1761783033217,-150.0,0.00014999,2]
[392654930,1761783033227,-150.0,0.00014999,2]
[392654932,1761783033238,-150.0,0.00014999,2]
[392654934,1761783033247,-150.0,0.00014999,2]
[392654936,1761783033257,-150.0,0.00014999,2]
[392654938,1761783033267,-500.0,0.00014999,2]
[392654940,1761783033276,-150.0,0.00014999,2]
[392654942,1761783033285,-150.0,0.00014999,2]
[392654944,1761783033295,-1608.0,0.00015,2]
[392654946,1761783033304,-73187.41738688,0.00015,2]
[392655021,1761783034178,-4162.17624833,0.00015,2]
[392655023,1761783034190,-4542.0637345,0.00015,2]
[392655025,1761783034201,-1102.60817105,0.00015,2]
[392655089,1761783037960,-784.299,0.00014835,2]
[392655090,1761783037971,-500.0,0.00014983,2]
[392655091,1761783037980,-449.56408309,0.00014983,2]
[392655092,1761783037992,-50.43591691,0.00014983,2]
[392655093,1761783038002,-500.0,0.00014983,2]
[392655094,1761783038011,-90.44695117,0.00014983,2]
[392655095,1761783038023,-409.55304883,0.00014983,2]
[392655096,1761783038032,-465.67448798,0.00014983,2]
[392655097,1761783038043,-34.32551202,0.00014983,2]
[392655098,1761783038052,-500.0,0.00014983,2]
[392655099,1761783038061,-570.82510429,0.00015,2]
[392655100,1761783038076,-7585.61700332,0.00015,2]
[392655101,1761783038087,-1287.45005375,0.00015,2]
[392655102,1761783038098,-944.96660644,0.00015,2]
[392655103,1761783038110,-265.78263965,0.00015,2]
[392655104,1761783038121,-3454.67156041,0.00015,2]
[392655105,1761783038133,-12975.24600604,0.00015,2]
[392655106,1761783038144,-9352.91551913,0.00015,2]
[392655107,1761783038155,-9107.40999116,0.00015,2]
[392655108,1761783038166,-3094.22191747,0.00015,2]
[392655109,1761783038178,-342.16705211,0.00015,2]
[392655110,1761783038189,-2365.07605108,0.00015,2]
[392655111,1761783038200,-17842.08,0.00015,2]
[392655112,1761783038212,-298.3695464,0.00015,2]
[392655113,1761783038225,-416.57467405,0.00015,2]
[392655114,1761783038237,-77918.13657639,0.00015,2]
[392655115,1761783038255,-8577.44587136,0.00015,2]
[392655116,1761783038267,-737.96489215,0.00015,2]
[392655135,1761783040480,-3458332.83312135,0.00015,2]
[392655136,1761783040490,-2027.33023954,0.00015,2]
[392655137,1761783040499,-7892.25569995,0.00015,2]
[392655138,1761783040508,-2710100.20692473,0.00015,2]
[392655139,1761783040527,-761.24013122,0.00015,2]
[392655154,1761783043407,-511.196922,0.00015,2]
[392655155,1761783043419,-1728.7784112,0.00015,2]
[392655174,1761783046200,-533.9999989,0.00015,2]
[392655175,1761783046211,-317.21249456,0.00015,2]
[392655176,1761783046223,-999.81000002,0.00015,2]
[392655700,1761783091271,150.0,0.00026251,120]
[392655704,1761783181089,750.0,0.000165,3]
[392655705,1761783181141,1063.88,0.00031507,120]
[392655706,1761783197634,6542.262594,0.00031506,120]
[392655707,1761783200505,500.0,0.000265,120]
[392655708,1761783210730,150.0,0.00028862,120]
[392655709,1761783244558,150.0,0.00014996,120]
[392655711,1761783507467,150.0,0.00031506,120]
[392655715,1761783525630,150.0,0.00031506,120]
[392655719,1761783913715,150.0,0.00013488,2]
[392655720,1761783913782,150.0,0.00013488,2]
[392655721,1761783918592,166.80831812,0.00013488,2]
[392655722,1761783919663,150.0,0.00013488,2]
[392655723,1761783920995,150.0,0.00013488,2]
[392655724,1761783935999,864.5179608,9e-05,2]
[392655728,1761784020836,-300.0,0.00013707,2]
[392655729,1761784028497,-300.0,0.00013707,2]
[392655730,1761784030547,-166.66,0.00013707,2]
[392655749,1761784032529,-153.79597611,0.00013707,2]
[392655758,1761784034259,-250.0,0.00013707,2]
[392655766,1761784053455,-300.0,0.00013707,2]
[392655767,1761784055192,-195.0,0.00013707,2]
[392655769,1761784057740,-300.0,0.00013707,2]
[392655770,1761784060979,-575.63450544,0.00013707,2]
[392655771,1761784063439,-151.93086821,0.00013707,2]
[392655772,1761784080460,-250.0,0.00013707,2]
[392655773,1761784083036,-350.0,0.00013707,2]
[392655774,1761784085105,309.44750071,0.000165,3]
[392655776,1761784110432,-487.74744068,0.00013707,2]
[392655783,1761784114779,-195.0,0.00013707,2]
[392655785,1761784119833,-195.0,0.00013707,2]
[392655812,1761784177916,993.36,0.00031506,120]
[392655813,1761784178186,993.36,0.00031506,120]
[392655814,1761784178446,993.36,0.00031506,120]
[392655815,1761784178725,993.36,0.00031506,120]
[392655816,1761784178945,993.36,0.00031506,120]
[392655817,1761784179198,993.36,0.00031506,120]
[392655818,1761784179732,993.36,0.00031506,120]
[392655819,1761784179772,993.36,0.00031506,120]
[392655820,1761784179957,993.36,0.00031506,120]
[392655825,1761784180204,993.36,0.00031506,120]
[392655832,1761784180454,993.36,0.00031506,120]
[392655833,1761784180713,993.36,0.00031506,120]
[392655834,1761784180978,993.36,0.00031506,120]
[392655835,1761784181227,993.36,0.00031506,120]
[392655836,1761784181479,993.36,0.00031506,120]
[392655837,1761784181755,993.36,0.00031506,120]
[392655838,1761784182240,993.36,0.00031506,120]
[392655839,1761784182274,993.36,0.00031506,120]
[392655840,1761784182804,993.36,0.00031506,120]
[392655841,1761784183059,993.36,0.00031506,120]
[392655845,1761784183318,993.36,0.00031506,120]
[392655853,1761784183563,993.36,0.00031506,120]
[392655854,1761784183824,993.36,0.00031506,120]
[392655855,1761784184123,993.4269699,0.00031506,120]
[392655856,1761784185395,-500.0,0.00013655,2]
[392655857,1761784188816,-269.37705323,0.00013655,2]
[392655858,1761784208520,1000.0,0.000165,3]
[392655860,1761784215495,-109.54688077,0.00013655,2]
[392655861,1761784215518,-54.89729,0.0001369,2]
[392655871,1761784232187,-195.10271,0.0001369,2]
[392655873,1761784232196,-300.0,0.00013724,2]
[392655875,1761784232206,-195.0,0.00013724,2]
[392655878,1761784232215,-300.0,0.00013732,2]
[392655880,1761784232224,-300.0,0.00013742,2]
[392655881,1761784232233,-727.56537365,0.00013766,2]
[392655882,1761784232242,-195.0,0.00013775,2]
[392655883,1761784232251,-1818.51870687,0.00013776,2]
[392655884,1761784232267,-947.16124306,0.00013776,2]
[392655885,1761784232278,-598.75702,0.00013776,2]
[392655886,1761784232288,-922.41530248,0.00013776,2]
[392655887,1761784232310,-1333.73772759,0.00013776,2]
[392655888,1761784232320,-300.0,0.00013815,2]
[392655889,1761784232329,-1200.0,0.00013834,2]
[392655890,1761784232338,-281.61606541,0.00013835,2]
[392655891,1761784232348,-419.07393459,0.00013835,2]
[392655892,1761784232357,-300.0,0.00013863,2]
[392655893,1761784232366,-300.0,0.00013863,2]
[392655894,1761784232375,-75.92606541,0.00013953,2]
[392655895,1761784232390,-362.06977527,0.00013953,2]
[392655896,1761784232401,-571.40658039,0.00013953,2]
[392655897,1761784232515,-506.02,0.00013953,2]
[392655945,1761784233128,-658.55748273,0.00013953,2]
[392656019,1761784238253,-612.7500962,0.00013953,2]
[392656020,1761784238270,-200.0,0.00013977,2]
[392656021,1761784238284,-150.0,0.00014063,2]
[392656022,1761784238297,-181.4226693,0.00014102,2]
[392656023,1761784238325,-355.68941795,0.00014102,2]
[392656024,1761784238341,-2099.57903522,0.00014102,2]
[392656025,1761784238364,-5053.26887753,0.00014102,2]
[392656026,1761784238377,-879.6,0.00014135,2]
[392656027,1761784238390,-277.35679052,0.00014249,2]
[392656028,1761784238404,-150.0,0.00014278,2]
[392656029,1761784238416,-1203.25,0.00014278,2]
[392656030,1761784238429,-12.54485925,0.00014278,2]
[392656031,1761784238445,-164.08514075,0.00014278,2]
[392656032,1761784238459,-414.99,0.00014278,2]
[392656033,1761784238472,-183.53,0.00014278,2]
[392656036,1761784238485,-1161.75592941,0.00014378,2]
[392656037,1761784238501,-41.49407059,0.00014378,2]
[392656038,1761784238514,-176.63,0.00014378,2]
[392656039,1761784238527,-150.0,0.00014378,2]
[392656040,1761784238541,-150.0,0.00014378,2]
[392656041,1761784238554,-150.0,0.00014478,2]
[392656042,1761784238568,-414.99,0.00014478,2]
[392656043,1761784238581,-1203.25,0.00014478,2]
[392656044,1761784238595,-176.63,0.00014478,2]
[392656045,1761784238608,-500.0,0.00014677,2]
[392656046,1761784238621,-612.84786107,0.00014677,2]
[392656047,1761784238634,-500.0,0.00014677,2]
[392656048,1761784238648,-500.0,0.00014677,2]
[392656049,1761784238661,-236.7875517,0.00014677,2]
[392656050,1761784238675,-500.0,0.00014677,2]
[392656051,1761784238688,-500.0,0.00014677,2]
[392656052,1761784238701,-500.0,0.00014677,2]
[392656053,1761784238714,-500.0,0.00014677,2]
[392656054,1761784238728,-500.0,0.00014677,2]
[392656055,1761784238741,-500.0,0.00014677,2]
[392656056,1761784238753,-500.0,0.00014677,2]
[392656057,1761784238766,-500.0,0.00014677,2]
[392656058,1761784238778,-500.0,0.00014677,2]
[392656059,1761784238790,-500.0,0.00014677,2]
[392656060,1761784238803,-500.0,0.00014677,2]
[392656061,1761784238817,-202.13628609,0.00014677,2]
[392656062,1761784238827,-500.0,0.00014677,2]
[392656063,1761784238847,-500.0,0.00014677,2]
[392656064,1761784238858,-500.0,0.00014677,2]
[392656065,1761784238867,-500.0,0.00014677,2]
[392656066,1761784239201,-500.0,0.00014677,2]
[392656067,1761784239227,-500.0,0.00014677,2]
[392656068,1761784239237,-500.0,0.00014677,2]
[392656069,1761784239246,-194.29,0.00014678,2]
[392656070,1761784239257,-1203.25,0.00014678,2]
[392656071,1761784239271,-150.0,0.00014678,2]
[392656072,1761784239280,-150.0,0.00014678,2]
[392656073,1761784239289,-161.1612636,0.0001469,2]
[392656074,1761784239299,-150.0,0.00014698,2]
[392656075,1761784239308,-150.0,0.000147,2]
[392656076,1761784239317,-1203.25,0.000147,2]
[392656077,1761784239327,-536.05764946,0.00014758,2]
[392656078,1761784239336,-150.0,0.000148,2]
[392656079,1761784239345,-150.0,0.000148,2]
[392656080,1761784239355,-527.63628,0.0001485,2]
[392656081,1761784239365,-3490.0,0.00014855,2]
[392656082,1761784239374,-500.0,0.00014891,2]
[392656083,1761784239383,-500.0,0.00014891,2]
[392656084,1761784239392,-500.0,0.00014891,2]
[392656085,1761784239401,-500.0,0.00014891,2]
[392656086,1761784239410,-500.0,0.00014891,2]
[392656087,1761784239419,-151.0,0.00014891,2]
[392656088,1761784239428,-500.0,0.00014891,2]
[392656089,1761784239437,-151.0,0.00014891,2]
[392656090,1761784239446,-500.0,0.00014891,2]
[392656091,1761784239455,-151.0,0.00014891,2]
[392656092,1761784239465,-500.0,0.00014891,2]
[392656093,1761784239474,-500.0,0.00014891,2]
[392656094,1761784239483,-500.0,0.00014891,2]
[392656095,1761784239491,-500.0,0.00014891,2]
[392656096,1761784239501,-500.0,0.00014891,2]
[392656097,1761784239510,-151.0,0.00014891,2]
[392656098,1761784239519,-151.0,0.00014891,2]
[392656099,1761784239529,-500.0,0.00014891,2]
[392656100,1761784239538,-500.0,0.00014891,2]
[392656101,1761784239548,-500.0,0.00014891,2]
[392656102,1761784239558,-500.0,0.00014891,2]
[392656103,1761784239568,-250.0,0.00014891,2]
[392656104,1761784239578,-500.0,0.00014891,2]
[392656105,1761784239587,-250.0,0.00014891,2]
[392656106,1761784239596,-250.0,0.00014891,2]
[392656107,1761784239605,-500.0,0.00014891,2]
[392656108,1761784239615,-250.0,0.00014891,2]
[392656109,1761784239624,-574.12855637,0.00014891,2]
[392656110,1761784239633,-500.0,0.00014891,2]
[392656111,1761784239643,-250.0,0.00014891,2]
[392656112,1761784239652,-500.0,0.00014891,2]
[392656113,1761784239662,-250.0,0.00014891,2]
[392656114,1761784239671,-500.0,0.00014891,2]
[392656115,1761784239681,-250.0,0.00014891,2]
[392656116,1761784239691,-500.0,0.00014891,2]
[392656117,1761784239701,-250.0,0.00014891,2]
[392656118,1761784239711,-500.0,0.00014891,2]
[392656119,1761784239720,-250.0,0.00014891,2]
[392656120,1761784239729,-250.0,0.00014891,2]
[392656121,1761784239739,-225.02258897,0.00014891,2]
[392656122,1761784239748,-937.53,0.00014899,2]
[392656123,1761784239757,-253.60092565,0.000149,2]
[392656124,1761784239767,-829.98,0.000149,2]
[392656125,1761784239777,-1203.25,0.000149,2]
[392656126,1761784239787,-414.99,0.000149,2]
[392656127,1761784239797,-150.0,0.000149,2]
[392656128,1761784239807,-381.35521412,0.000149,2]
[392656129,1761784239816,-715.90805044,0.000149,2]
[392656130,1761784239826,-500.0,0.00014973,2]
[392656131,1761784239837,-500.0,0.00014973,2]
[392656132,1761784239847,-500.0,0.00014973,2]
[392656133,1761784239856,-500.0,0.00014973,2]
[392656134,1761784239867,-500.0,0.00014973,2]
[392656135,1761784239876,-500.0,0.00014973,2]
[392656136,1761784239886,-500.0,0.00014973,2]
[392656137,1761784239895,-500.0,0.00014973,2]
[392656138,1761784239905,-500.0,0.00014973,2]
[392656139,1761784239914,-828.991,0.0001498,2]
[392656140,1761784239924,-158.74264451,0.0001499,2]
[392656141,1761784239933,-150.0,0.00014996,2]
[392656142,1761784239943,-296.85185064,0.00014998,2]
[392656143,1761784239952,-150.000001,0.00014999,2]
[392656144,1761784239962,-150.0,0.00014999,2]
[392656145,1761784239971,-500.0,0.00014999,2]
[392656146,1761784239981,-52284.39212181,0.00014999,2]
[392656147,1761784240494,-1.6e-07,0.00014999,2]
[392656148,1761784240516,-191459.77510453,0.00014999,2]
[392656149,1761784240526,-150.0,0.00014999,2]
[392656150,1761784240535,-150.0,0.00014999,2]
[392656151,1761784240544,-200.0,0.00014999,2]
[392656152,1761784240554,-150.0,0.00014999,2]
[392656153,1761784240564,-150.0,0.00014999,2]
[392656154,1761784240574,-150.0,0.00014999,2]
[392656155,1761784240584,-1081.0,0.00015,2]
[392656156,1761784240593,-5984861.85088104,0.00015,2]
[392656157,1761784240605,-10987.98472058,0.00015,2]
[392656159,1761784240622,-1104.3564118,0.00015,2]
[392656170,1761784243655,-734.04574579,0.00015,2]
[392656172,1761784243666,-1130.40073013,0.00015,2]
[392656173,1761784243682,-2602.57447119,0.00015,2]
[392656174,1761784243694,-461.412428,0.00015,2]
[392656175,1761784243731,-2286.63411454,0.00015,2]
[392656176,1761784243742,-542.20277497,0.00015,2]
[392656177,1761784243753,-3601.72479197,0.00015,2]
[392656178,1761784243764,-1012.85979988,0.00015,2]
[392656179,1761784243794,-1338.89025357,0.00015,2]
[392656184,1761784246353,-571.0,0.00014855,2]
[392656185,1761784246362,-500.549,0.00015,2]
[392656188,1761784364509,168.0,0.000165,3]
[392656189,1761784604390,160.0,0.000315,120]
[392656190,1761784609294,500.0,0.000315,120]
[392656191,1761784609870,160.0,0.000315,120]
[392656192,1761784642168,500.0,0.000315,120]
[392656193,1761784691998,160.0,0.000315,120]
[392656194,1761784695418,-250.0,0.00014076,2]
[392656195,1761784695446,-195.0,0.00014845,2]
[392656196,1761784695471,-150.0,0.00014848,2]
[392656197,1761784695497,-439.6969,0.0001485,2]
[392656198,1761784695524,-300.0,0.00014852,2]
[392656199,1761784695547,-300.0,0.00014858,2]
[392656200,1761784695572,-195.0,0.00014885,2]
[392656201,1761784695596,-153.79597611,0.0001489,2]
[392656202,1761784695620,-1016.50712389,0.000149,2]
[392656256,1761784743341,168.12,7.056e-05,2]
[392656264,1761784743557,168.12,8.468e-05,2]
[392656268,1761784743802,168.12,9.879e-05,2]
[392656269,1761784743974,160.0,0.000165,3]
[392656270,1761784744056,168.12,0.0001129,2]
[392656271,1761784744339,168.12,0.00012702,2]
[392656272,1761784745093,160.0,0.000165,3]
[392656273,1761784758672,168.0,0.000165,3]
[392656274,1761784758701,-168.12,0.00014113,2]
[392656275,1761784758723,-195.0,0.0001443,2]
[392656276,1761784758745,-300.0,0.0001443,2]
[392656277,1761784758768,-195.0,0.00014692,2]
[392656278,1761784758793,-161.16126361,0.00014748,2]
[392656279,1761784758816,-160.0,0.000148,2]
[392656280,1761784758839,-160.0,0.000148,2]
[392656281,1761784758862,-300.0,0.00014899,2]
[392656282,1761784758885,-11207.69246778,0.000149,2]
[392656283,1761784758908,-160.0,0.000149,2]
[392656284,1761784758930,-300.0,0.0001492,2]
[392656285,1761784758952,-150.0,0.00014972,2]
[392656286,1761784758973,-500.0,0.00014973,2]
[392656287,1761784758995,-500.0,0.00014973,2]
[392656288,1761784759018,-500.0,0.00014973,2]
[392656289,1761784759040,-500.0,0.00014973,2]
[392656290,1761784759061,-584.19323477,0.00014973,2]
[392656291,1761784759082,-500.0,0.00014973,2]
[392656292,1761784759105,-637.35139172,0.00014973,2]
[392656293,1761784759127,-500.0,0.00014973,2]
[392656294,1761784759149,-300.0,0.00014985,2]
[392656295,1761784759171,-1200.0,0.00014985,2]
[392656296,1761784759194,-663.193,0.00014986,2]
[392656297,1761784759217,-6461.0,0.00014986,2]
[392656298,1761784759238,-558.0,0.00014986,2]
[392656299,1761784759260,-500.0,0.00014991,2]
[392656300,1761784759282,-574.12855637,0.00014991,2]
[392656301,1761784759304,-277.35679052,0.00014991,2]
[392656302,1761784759329,-500.0,0.00014997,2]
[392656303,1761784759353,-500.0,0.00014997,2]
[392656304,1761784759377,-500.0,0.00014997,2]
[392656305,1761784759401,-500.0,0.00014997,2]
[392656306,1761784759429,-500.0,0.00014997,2]
[392656307,1761784759453,-151.55118254,0.00014997,2]
[392656308,1761784759477,-500.0,0.00014997,2]
[392656309,1761784759502,-500.0,0.00014997,2]
[392656310,1761784759525,-500.0,0.00014997,2]
[392656311,1761784759549,-500.0,0.00014997,2]
[392656312,1761784759574,-500.0,0.00014997,2]
[392656313,1761784759599,-500.0,0.00014997,2]
[392656314,1761784759623,-500.0,0.00014997,2]
[392656315,1761784759647,-500.0,0.00014997,2]
[392656316,1761784759671,-500.0,0.00014997,2]
[392656317,1761784759695,-499.99999999,0.00014997,2]
[392656318,1761784759720,-500.0,0.00014997,2]
[392656319,1761784759743,-207.79629545,0.00014999,2]
[392656320,1761784759766,-500.0,0.00014999,2]
[392656321,1761784759788,-500.0,0.00014999,2]
[392656322,1761784759812,-500.0,0.00014999,2]
[392656323,1761784759835,-500.0,0.00014999,2]
[392656324,1761784759858,-500.0,0.00014999,2]
[392656325,1761784759883,-500.0,0.00014999,2]
[392656326,1761784759907,-500.0,0.00014999,2]
[392656327,1761784759930,-500.0,0.00014999,2]
[392656328,1761784759953,-500.0,0.00014999,2]
[392656329,1761784759976,-500.0,0.00014999,2]
[392656330,1761784759998,-500.0,0.00014999,2]
[392656331,1761784760024,-500.0,0.00014999,2]
[392656332,1761784760047,-500.0,0.00014999,2]
[392656333,1761784760070,-500.0,0.00014999,2]
[392656334,1761784760093,-500.0,0.00014999,2]
[392656335,1761784760116,-500.0,0.00014999,2]
[392656336,1761784760139,-500.0,0.00014999,2]
[392656337,1761784760161,-500.0,0.00014999,2]
[392656338,1761784760187,-500.0,0.00014999,2]
[392656339,1761784760210,-500.0,0.00014999,2]
[392656340,1761784760232,-859.4,0.00014999,2]
[392656341,1761784760256,-1075.0,0.00015,2]
[392656342,1761784760279,-53494.05581725,0.00015,2]
[392656374,1761784888026,999.0,0.00015092,3]
[392656378,1761785010417,-252.79239799,0.00013699,2]
[392656379,1761785014596,-205.79592951,0.00013699,2]
[392656380,1761785015072,-265.2416725,0.00013699,2]
[392656381,1761785015093,-536.05764946,0.00014644,2]
[392656382,1761785015114,-250.0,0.00014672,2]
[392656383,1761785015136,-150.0,0.00014672,2]
[392656384,1761785015156,-174.095,0.000147,2]
[392656385,1761785015177,-195.0,0.00014943,2]
[392656386,1761785015199,-195.0,0.00014958,2]
[392656387,1761785015218,-500.0,0.00014973,2]
[392656388,1761785015238,-500.0,0.00014973,2]
[392656389,1761785015258,-500.0,0.00014973,2]
[392656390,1761785015282,-500.0,0.00014973,2]
[392656391,1761785015302,-219.37458201,0.00014985,2]
[392656392,1761785015322,-300.0,0.0001499,2]
[392656393,1761785015343,-277.35679052,0.00014991,2]
[392656394,1761785015364,-574.12855637,0.00014991,2]
[392656395,1761785015384,-500.0,0.00014991,2]